bitfinex/quotes_SOLUSD_20220212
["timestamp","ask_amount","ask_price","bid_price","bid_amount"]
[1644696446426,2.82136136,97.235,97.16,15.4358]
[1644696446626,35.00600478,97.233,97.16,15.4358]
[1644696446827,5.144,97.232,97.16,15.4358]
[1644696447228,5.144,97.232,97.16,117.0358]
[1644696449028,5.144,97.232,97.18,15.4336]
[1644696449328,2.82136136,97.243,97.18,15.4336]
[1644696449730,2.82136136,97.241,97.18,15.4336]
[1644696449930,37.58538307,97.238,97.18,15.4336]
[1644696450132,2.82136136,97.236,97.16,15.4359]
[1644696450332,2.82136136,97.223,97.122,5.144]
[1644696450530,2.82136136,97.211,97.119,5.144]
[1644696450732,2.82136136,97.205,97.119,5.144]
[1644696450931,48.98826341,97.204,97.081,7.76790296]
[1644696451132,2.82136136,97.203,97.12,34.55561648]
[1644696451334,48.98826341,97.204,97.121,0.25]
[1644696451535,46.16690205,97.204,97.121,0.25]
[1644696451733,46.16690205,97.204,97.13,15.4409]
[1644696452433,5.144,97.203,97.13,15.4409]
[1644696452634,46.16690205,97.204,97.131,5.144]
[1644696452835,46.16690205,97.204,97.141,39.53701477]
[1644696453033,5.144,97.203,97.141,39.53701477]
[1644696454433,46.16690205,97.204,97.141,39.53701477]
[1644696454733,46.16690205,97.204,97.12,101.6]
[1644696454936,5.146,97.203,97.12,117.0418]
[1644696455136,2.82136136,97.197,97.12,117.0418]
[1644696455337,5.146,97.196,97.12,117.0418]
[1644696455538,5.146,97.196,97.121,0.25]
[1644696455837,5.146,97.196,97.121,42.64191855]
[1644696456238,2.82136136,97.194,97.121,42.64191855]
[1644696456541,2.82136136,97.179,97.121,42.64191855]
[1644696456738,38.99449883,97.178,97.121,42.64191855]
[1644696456938,38.99449883,97.178,97.12,15.4418]
[1644696457140,7.96736136,97.177,97.1,15.4449]
[1644696457341,2.82136136,97.169,97.079,5.147]
[1644696457541,2.82136136,97.163,97.054,5.147]
[1644696457742,2.82136136,97.147,97.02,14.85]
[1644696457941,2.82136136,97.142,97.021,73.44345555]
[1644696458141,2.82136136,97.14,97.021,73.44345555]
[1644696458342,2.82136136,97.138,97.021,73.44345555]
[1644696458541,5.15,97.137,97.021,76.06735851]
[1644696458768,5.15,97.137,97.04,15.4541]
[1644696458769,15.4541,97.13,97.04,15.4541]
[1644696458942,2.82136136,97.122,97.042,101.6]
[1644696459247,45.65525322,97.121,97.043,49.98921829]
[1644696459642,48.47661458,97.121,97.043,49.98921829]
[1644696459841,2.82136136,97.117,97.043,49.98921829]
[1644696460046,7.97136136,97.116,97.043,49.98921829]
[1644696460241,5.15,97.119,97.043,49.98921829]
[1644696460441,5.15,97.115,97.043,49.98921829]
[1644696460643,5.15,97.118,97.043,49.98921829]
[1644696460843,7.97136136,97.12,97.043,49.98921829]
[1644696461243,7.94247136,97.12,97.043,49.98921829]
[1644696461747,15.4574,97.11,97.044,0.25]
[1644696463045,5.15,97.12,97.044,0.25]
[1644696463247,45.65525322,97.121,97.045,5.15]
[1644696463947,5.15,97.12,97.044,0.25]
[1644696464847,5.15,97.12,97.05,15.4538]
[1644696465648,20.6057,97.12,97.05,15.4538]
[1644696467050,35.4557,97.12,97.044,0.25]
[1644696467250,101.6,97.119,97.044,0.25]
[1644696467449,35.4557,97.12,97.003,23.4228]
[1644696467450,5.15,97.118,97.003,23.4228]
[1644696467651,15.4589,97.1,97.003,23.4228]
[1644696467853,5.151,97.099,97.004,101.6]
[1644696468351,46.03968454,97.098,97.005,43.81953677]
[1644696468552,5.151,97.097,97.006,101.6]
[1644696468751,5.151,97.097,97.02,15.4588]
[1644696468950,5.151,97.097,97.021,47.47134726]
[1644696469853,15.4608,97.09,97.021,47.47134726]
[1644696471257,5.151,97.089,97.021,47.47134726]
[1644696472662,46.03968454,97.098,97.021,47.47134726]
[1644696472861,46.03968454,97.098,97.022,5.151]
[1644696473260,46.03968454,97.098,97.023,0.25]
[1644696473461,46.03968454,97.098,97.024,5.151]
[1644696473660,5.151,97.097,97.023,0.25]
[1644696474363,0.25,97.096,97.023,0.25]
[1644696474562,5.151,97.095,97.023,0.25]
[1644696475762,46.03968454,97.098,97.024,5.151]
[1644696475965,30.3083,97.11,97.03,15.4569]
[1644696476165,15.4583,97.11,97.03,15.4569]
[1644696476367,5.151,97.115,97.031,101.6]
[1644696476569,14.85,97.12,97.032,5.15]
[1644696476969,44.72280927,97.115,97.032,5.15]
[1644696477167,44.97280927,97.115,97.04,15.4552]
[1644696477370,5.15,97.114,97.041,36.60024897]
[1644696478771,44.97280927,97.115,97.041,36.60024897]
[1644696480377,0.25,97.115,97.05,15.4538]
[1644696482186,0.02784753,97.138,97.051,106.75]
[1644696482388,0.02784753,97.155,97.071,101.6]
[1644696482585,0.02784753,97.139,97.072,5.148]
[1644696482787,5.17584753,97.162,97.073,101.6]
[1644696483085,47.738,97.169,97.076,47.45898133]
[1644696483086,0.02784753,97.158,97.076,47.45898133]
[1644696483386,0.02784753,97.161,97.077,101.6]
[1644696483586,0.02784753,97.167,97.077,106.748]
[1644696483787,0.02784753,97.167,97.09,15.447]
[1644696483986,0.25,97.167,97.091,49.92149223]
[1644696484186,7.77090296,97.166,97.091,49.92149223]
[1644696484389,7.77090296,97.166,97.091,5.147]
[1644696484587,106.65540603,97.165,97.091,5.147]
[1644696484787,10.20240603,97.164,97.091,5.147]
[1644696484990,5.05540603,97.163,97.091,5.147]
[1644696485186,5.147,97.162,97.091,5.147]
[1644696485388,106.65540603,97.161,97.091,5.147]
[1644696485790,101.6,97.159,97.091,5.147]
[1644696485989,5.05540603,97.158,97.091,5.147]
[1644696486188,5.148,97.157,97.091,5.147]
[1644696486390,106.748,97.157,97.091,5.147]
[1644696486589,5.05540603,97.156,97.091,5.147]
[1644696486790,15.4515,97.15,97.085,44.72444162]
[1644696486989,56.57099448,97.149,97.085,44.72444162]
[1644696487189,5.05540603,97.148,97.085,44.72444162]
[1644696488591,5.148,97.147,97.085,44.72444162]
[1644696488790,5.05540603,97.146,97.085,44.72444162]
[1644696489197,5.148,97.145,97.085,44.72444162]
[1644696489598,5.05540603,97.144,97.085,44.72444162]
[1644696489997,5.148,97.143,97.085,44.72444162]
[1644696490202,5.05540603,97.142,97.085,44.72444162]
[1644696490599,46.36758845,97.149,97.085,44.72444162]
[1644696490600,5.148,97.141,97.085,44.72444162]
[1644696490801,5.05540603,97.14,97.085,44.72444162]
[1644696491005,5.05540603,97.14,97.045,5.148]
[1644696491210,5.149,97.139,97.05,15.4529]
[1644696491403,10.20440603,97.139,97.05,15.4529]
[1644696491801,5.05540603,97.138,97.05,15.4529]
[1644696492004,5.05540603,97.138,97.051,43.56568807]
[1644696492005,5.149,97.137,97.051,43.56568807]
[1644696492204,5.05540603,97.136,97.051,48.71468807]
[1644696492408,5.05540603,97.136,97.06,15.452]
[1644696492605,0.02784753,97.146,97.061,5.149]
[1644696492807,0.02784753,97.145,97.061,5.149]
[1644696493003,5.08325356,97.148,97.061,5.149]
[1644696493204,5.149,97.147,97.061,5.149]
[1644696493405,5.05540603,97.146,97.052,5.149]
[1644696493607,0.02784753,97.146,97.053,101.6]
[1644696493806,5.17684753,97.145,97.07,15.4499]
[1644696494005,5.05540603,97.144,97.071,44.42814306]
[1644696494207,5.05540603,97.146,97.071,49.57614306]
[1644696494407,1.42530622,97.118,97.071,49.57614306]
[1644696494808,48.36946445,97.125,97.071,49.57614306]
[1644696494809,1.42530622,97.117,97.071,49.57614306]
[1644696495415,1.42530622,97.118,97.071,49.57614306]
[1644696496114,1.42530622,97.12,97.071,49.57614306]
[1644696496311,1.42530622,97.12,97.072,101.6]
[1644696496511,1.42530622,97.12,97.08,15.449]
[1644696496711,1.42530622,97.121,97.08,15.449]
[1644696496911,1.42530622,97.123,97.08,15.449]
[1644696497412,1.42530622,97.132,97.08,15.449]
[1644696497617,1.42530622,97.133,97.09,15.4474]
[1644696497814,1.42530622,97.133,97.09,23.4674]
[1644696498015,1.42530622,97.134,97.09,23.4674]
[1644696498214,1.42530622,97.136,97.091,47.86274097]
[1644696499314,0.25,97.135,97.091,47.86274097]
[1644696499514,1.42530622,97.132,97.091,47.86274097]
[1644696499913,1.42530622,97.131,97.091,47.86274097]
[1644696500115,1.42530622,97.132,97.091,47.86274097]
[1644696500316,1.42530622,97.131,97.091,47.86274097]
[1644696501115,1.42530622,97.132,97.091,47.86274097]
[1644696501317,1.42530622,97.131,97.091,47.86274097]
[1644696501718,1.42530622,97.134,97.091,47.86274097]
[1644696501915,1.42530622,97.133,97.091,47.86274097]
[1644696502317,1.42530622,97.132,97.091,47.86274097]
[1644696503317,1.42530622,97.135,97.091,47.86274097]
[1644696503517,1.42530622,97.135,97.091,53.01074097]
[1644696503717,0.25,97.134,97.091,53.01074097]
[1644696503923,1.67530622,97.134,97.091,47.86274097]
[1644696504119,1.42530622,97.132,97.092,5.148]
[1644696504320,1.42530622,97.133,97.091,47.86274097]
[1644696504723,1.42530622,97.132,97.091,47.86274097]
[1644696505021,1.42530622,97.134,97.091,47.86274097]
[1644696505225,1.42530622,97.134,97.092,0.25]
[1644696505827,1.42530622,97.135,97.092,0.25]
[1644696506126,1.42530622,97.133,97.092,0.25]
[1644696506328,1.42530622,97.131,97.1,15.4461]
[1644696506525,1.42530622,97.135,97.1,15.4461]
[1644696506725,1.42530622,97.136,97.1,15.4461]
[1644696507126,1.42530622,97.137,97.1,15.4461]
[1644696507550,1.42530622,97.136,97.101,101.6]
[1644696507926,1.42530622,97.134,97.101,101.6]
[1644696508132,1.42530622,97.133,97.101,101.6]
[1644696508729,1.42530622,97.134,97.101,101.6]
[1644696509128,1.42530622,97.133,97.101,101.6]
[1644696509329,1.42530622,97.13,97.101,101.6]
[1644696509730,1.42530622,97.129,97.101,101.6]
[1644696509930,43.2540042,97.144,97.101,101.6]
[1644696509931,1.42530622,97.126,97.101,101.6]
[1644696510536,1.42530622,97.127,97.101,101.6]
[1644696511134,1.42530622,97.128,97.101,101.6]
[1644696511336,1.42530622,97.127,97.101,101.6]
[1644696512839,1.42530622,97.127,97.1,15.4461]
[1644696514641,1.42530622,97.126,97.1,15.4461]
[1644696516462,1.42530622,97.125,97.1,15.4461]
[1644696517962,1.42530622,97.126,97.091,47.86274097]
[1644696518165,1.42530622,97.115,97.091,47.86274097]
[1644696518374,1.42530622,97.114,97.091,47.86274097]
[1644696518764,1.42530622,97.116,97.08,15.4479]
[1644696518963,1.42530622,97.111,97.083,0.25]
[1644696519463,1.42530622,97.109,97.083,0.25]
[1644696519864,1.42530622,97.109,97.07,37.01049689]
[1644696520068,46.02638234,97.129,97.07,37.01049689]
[1644696520069,1.42530622,97.105,97.07,37.01049689]
[1644696520265,1.42530622,97.106,97.07,37.01049689]
[1644696520465,1.42530622,97.102,97.07,37.01049689]
[1644696520867,1.42530622,97.101,97.07,37.01049689]
[1644696521064,1.42530622,97.108,97.07,52.46149689]
[1644696521665,1.42530622,97.108,97.071,5.399]
[1644696522165,1.42530622,97.107,97.071,5.399]
[1644696522766,1.42530622,97.106,97.071,5.399]
[1644696522966,1.42530622,97.106,97.071,0.25]
[1644696524468,1.42530622,97.107,97.071,0.25]
[1644696524673,1.42530622,97.106,97.071,0.25]
[1644696525875,1.42530622,97.107,97.071,0.25]
[1644696530194,15.451,97.15,97.073,60.0]
[1644696530387,5.06722011,97.149,97.08,15.4493]
[1644696530579,5.06722011,97.158,97.081,5.148]
[1644696530780,0.02784753,97.167,97.075,5.148]
[1644696530983,0.02784753,97.167,97.081,2.62390296]
[1644696531279,5.09506764,97.168,97.081,2.62390296]
[1644696531483,0.02784753,97.167,97.083,101.6]
[1644696531681,0.02784753,97.166,97.085,46.64880927]
[1644696531878,0.02784753,97.166,97.087,101.6]
[1644696532078,5.06722011,97.166,97.088,24.5871]
[1644696532280,4.77484753,97.165,97.088,24.5871]
[1644696532479,5.06722011,97.164,97.088,24.5871]
[1644696532879,5.06722011,97.164,97.101,39.06776854]
[1644696533080,4.751,97.163,97.072,5.147]
[1644696533280,46.93962307,97.163,97.045,5.148]
[1644696533482,14.85,97.15,97.045,5.148]
[1644696533684,14.85,97.15,97.0,14.85]
[1644696533685,29.1708,97.149,97.0,14.85]
[1644696533891,15.4561,97.12,97.001,5.15]
[1644696534082,14.85,97.11,97.002,34.69095448]
[1644696534282,101.6,97.089,97.002,34.69095448]
[1644696534581,39.55950102,97.088,97.002,34.69095448]
[1644696534782,5.06722011,97.087,97.002,34.69095448]
[1644696534982,5.06722011,97.087,96.954,0.024]
[1644696534983,5.152,97.086,96.954,0.024]
[1644696535281,5.06722011,97.085,96.972,0.25]
[1644696535481,7.69112307,97.085,96.972,0.25]
[1644696535781,30.3146,97.08,96.98,15.464]
[1644696536081,104.22390296,97.079,96.981,38.78164096]
[1644696536284,109.37590296,97.079,96.981,43.93364096]
[1644696536482,2.62390296,97.078,96.981,43.93364096]
[1644696536680,5.152,97.077,96.981,43.93364096]
[1644696536880,101.6,97.076,96.981,43.93364096]
[1644696537081,5.152,97.075,96.981,43.93364096]
[1644696537284,15.4651,97.07,96.96,15.4674]
[1644696537482,15.4651,97.07,96.937,5.152]
[1644696537483,14.85,97.06,96.937,5.152]
[1644696537683,101.6,97.059,96.951,0.024]
[1644696537881,109.37790296,97.059,96.955,0.024]
[1644696538081,109.37790296,97.059,96.933,5.178]
[1644696538281,38.36393133,97.058,96.939,5.178]
[1644696538485,5.154,97.057,96.934,37.66317797]
[1644696538680,7.77790296,97.057,96.935,5.178]
[1644696538887,15.4711,97.03,96.94,15.4707]
[1644696539081,40.43795,97.029,96.941,5.178]
[1644696539380,35.28295,97.029,96.942,101.624]
[1644696539581,35.28295,97.029,96.944,101.6]
[1644696539981,35.28295,97.029,96.946,101.6]
[1644696540385,35.28295,97.029,96.947,0.024]
[1644696540785,35.28295,97.029,96.95,15.4688]
[1644696540984,35.28295,97.029,96.951,47.33235069]
[1644696541183,35.28295,97.029,96.951,47.35635069]
[1644696541387,35.28295,97.029,96.951,47.33235069]
[1644696541985,35.28295,97.029,96.952,101.6]
[1644696542390,35.28295,97.029,96.953,5.155]
[1644696542587,35.28295,97.029,96.954,101.6]
[1644696542788,35.28295,97.029,96.96,15.4671]
[1644696542989,35.28295,97.029,96.961,5.154]
[1644696543190,35.28295,97.029,96.962,101.6]
[1644696543691,35.28295,97.029,96.964,101.6]
[1644696544295,5.154,97.064,96.97,15.4665]
[1644696544491,5.154,97.064,96.972,101.6]
[1644696544695,5.154,97.064,96.973,5.152]
[1644696545191,43.71793329,97.063,96.973,5.152]
[1644696545493,15.4653,97.06,96.972,101.624]
[1644696545691,5.152,97.059,96.973,0.024]
[1644696546294,101.6,97.058,96.973,45.55662454]
[1644696546499,5.152,97.057,96.974,0.024]
[1644696546897,15.4675,97.05,96.974,0.024]
[1644696547097,47.43887174,97.048,96.973,45.55662454]
[1644696547298,5.154,97.047,96.973,45.53262454]
[1644696549815,47.43887174,97.048,96.974,5.154]
[1644696550015,5.154,97.047,96.98,15.4648]
[1644696550216,47.43887174,97.048,96.981,5.152]
[1644696550617,5.152,97.047,96.981,5.152]
[1644696551316,0.25,97.046,96.981,5.152]
[1644696551518,5.152,97.045,96.967,0.024]
[1644696551714,5.152,97.045,96.967,101.624]
[1644696552015,5.154,97.079,96.97,15.4659]
[1644696552217,5.152,97.091,96.98,14.85]
[1644696552417,51.6239,97.097,96.981,28.8035]
[1644696552616,46.4719,97.097,96.981,28.8275]
[1644696552819,35.85435842,97.096,96.982,44.17389946]
[1644696553017,35.85435842,97.096,96.983,5.176]
[1644696553215,14.85,97.13,97.011,101.6]
[1644696553419,5.152,97.123,97.012,5.15]
[1644696553616,14.85,97.14,97.013,23.6589]
[1644696553816,10.20220435,97.139,97.014,5.15]
[1644696554015,12.82610731,97.139,97.015,101.6]
[1644696554218,40.79918612,97.138,97.016,43.31448393]
[1644696554416,5.15,97.137,97.017,101.6]
[1644696554614,5.05181238,97.136,97.017,101.6]
[1644696554814,5.15,97.135,97.017,101.6]
[1644696555215,7.77390296,97.135,97.017,101.6]
[1644696555514,2.62390296,97.134,97.017,101.6]
[1644696555715,14.85,97.13,97.017,101.6]
[1644696555916,5.15,97.129,97.04,15.4545]
[1644696556116,5.15,97.129,97.041,45.22114564]
[1644696558220,15.4557,97.12,97.041,45.22114564]
[1644696558421,5.15,97.119,97.021,101.6]
[1644696558624,101.6,97.118,97.021,101.6]
[1644696558823,2.62390296,97.118,97.021,101.6]
[1644696559022,5.15,97.117,97.021,101.6]
[1644696559226,7.77390296,97.117,97.021,101.6]
[1644696559422,38.92930171,97.116,97.023,101.6]
[1644696559622,38.92930171,97.116,97.03,15.4572]
[1644696559822,38.92930171,97.116,97.032,101.6]
[1644696560022,38.92930171,97.116,97.034,101.6]
[1644696560423,38.92930171,97.116,97.035,5.15]
[1644696560623,38.92930171,97.116,97.031,5.15]
[1644696560827,5.15,97.115,97.041,38.54628511]
[1644696561525,38.92930171,97.116,97.042,5.15]
[1644696562223,0.25,97.115,97.042,5.15]
[1644696562824,0.25,97.115,97.05,15.4539]
[1644696563427,0.25,97.115,97.05,25.3239]
[1644696567531,0.25,97.115,97.06,15.4526]
[1644696567934,0.25,97.115,97.061,5.149]
[1644696568132,0.25,97.115,97.06,15.4526]
[1644696568733,0.25,97.115,97.061,46.32398888]
[1644696569542,0.25,97.115,97.062,5.149]
[1644696569735,0.25,97.115,97.061,46.32398888]
[1644696573440,22.5723,97.142,97.061,46.32398888]
[1644696573441,22.5723,97.142,97.07,15.4508]
[1644696573640,5.149,97.145,97.071,101.6]
[1644696573839,5.148,97.149,97.071,106.748]
[1644696574038,0.02784753,97.148,97.071,109.37190296]
[1644696574240,0.02784753,97.15,97.071,106.748]
[1644696574444,38.88775207,97.173,97.071,106.748]
[1644696574643,10.25129607,97.172,97.071,106.748]
[1644696574841,15.4488,97.17,97.091,38.62466371]
[1644696575064,5.147,97.169,97.091,38.62466371]
[1644696575240,5.17484753,97.169,97.091,38.62466371]
[1644696576044,15.4495,97.16,97.08,15.4482]
[1644696576244,10.2442365,97.159,97.08,15.4482]
[1644696576452,5.06838897,97.158,97.08,15.4482]
[1644696576648,101.6,97.157,97.063,5.148]
[1644696576849,106.77584753,97.157,97.062,22.5591]
[1644696577049,101.6,97.155,97.063,46.76889621]
[1644696577252,15.4511,97.15,97.07,15.451]
[1644696577749,2.65175049,97.149,97.07,15.451]
[1644696577950,7.79975049,97.149,97.071,5.148]
[1644696578150,2.62390296,97.148,97.071,5.148]
[1644696578359,5.148,97.147,97.071,5.148]
[1644696578552,5.148,97.147,97.07,15.451]
[1644696578753,7.77190296,97.147,97.07,15.451]
[1644696578953,15.4526,97.14,97.07,15.451]
[1644696579157,43.64478439,97.139,97.063,46.76889621]
[1644696579358,101.6,97.138,97.063,46.76889621]
[1644696579556,5.149,97.137,97.05,15.453]
[1644696579953,7.77290296,97.137,97.05,15.453]
[1644696580159,109.30503462,97.136,97.05,15.453]
[1644696580359,111.83013166,97.135,97.051,23.5425]
[1644696580559,5.08113166,97.134,97.052,45.87400484]
[1644696580759,15.4545,97.13,97.052,46.12400484]
[1644696580959,5.149,97.129,97.052,46.12400484]
[1644696582161,15.4545,97.13,97.052,46.12400484]
[1644696582365,38.49578439,97.139,97.06,15.4519]
[1644696583178,38.49578439,97.139,97.061,5.149]
[1644696583379,38.49578439,97.139,97.071,39.84257297]
[1644696583782,0.25,97.138,97.071,39.84257297]
[1644696584386,0.25,97.138,97.072,5.149]
[1644696584585,0.25,97.138,97.072,14.719]
[1644696584782,0.02784753,97.15,97.073,101.6]
[1644696584990,3.12772977,97.155,97.08,15.4493]
[1644696585182,3.12772977,97.155,97.074,5.148]
[1644696585183,0.02784753,97.154,97.081,106.748]
[1644696585382,0.25,97.155,97.081,104.22390296]
[1644696585583,0.02784753,97.157,97.082,5.148]
[1644696585783,0.02784753,97.172,97.082,7.77190296]
[1644696585984,2.84988224,97.177,97.083,2.62390296]
[1644696586187,0.02784753,97.171,97.083,104.22390296]
[1644696586390,0.02784753,97.176,97.083,104.22390296]
[1644696586585,0.02784753,97.17,97.084,2.62390296]
[1644696586784,0.02784753,97.175,97.101,101.6]
[1644696586985,0.02784753,97.169,97.101,110.63]
[1644696587186,0.02784753,97.177,97.102,2.62390296]
[1644696587385,0.02784753,97.175,97.102,2.62390296]
[1644696587595,5.36844874,97.185,97.102,2.62390296]
[1644696587790,0.02784753,97.184,97.121,45.10332212]
[1644696587989,5.09060121,97.184,97.121,45.10332212]
[1644696588191,7.94048345,97.184,97.121,45.10332212]
[1644696588390,5.09060121,97.184,97.121,45.10332212]
[1644696589092,5.146,97.183,97.121,45.10332212]
[1644696589294,5.09060121,97.182,97.121,45.10332212]
[1644696589793,7.76990296,97.181,97.103,23.7972]
[1644696589994,14.85,97.17,97.091,5.146]
[1644696590196,2.84988224,97.166,97.075,5.147]
[1644696590395,2.84988224,97.166,97.061,5.148]
[1644696590597,8.02572977,97.165,97.061,5.148]
[1644696590795,49.5149351,97.164,97.062,46.14213738]
[1644696591000,7.94048345,97.163,97.062,46.14213738]
[1644696591196,5.148,97.162,97.062,46.14213738]
[1644696591403,5.11844874,97.161,97.062,46.14213738]
[1644696591598,0.02784753,97.16,97.062,46.14213738]
[1644696591798,5.17584753,97.16,97.08,15.4481]
[1644696591998,5.09060121,97.159,97.081,39.57444043]
[1644696592199,10.23860121,97.159,97.081,39.57444043]
[1644696592500,5.09060121,97.158,97.081,39.57444043]
[1644696592703,5.148,97.16,97.081,39.57444043]
[1644696592899,5.09060121,97.159,97.081,39.57444043]
[1644696593102,5.11844874,97.161,97.081,39.57444043]
[1644696593303,0.02784753,97.163,97.09,15.4477]
[1644696593501,41.57445165,97.164,97.091,5.147]
[1644696593702,41.57445165,97.164,97.083,5.148]
[1644696593924,41.57445165,97.164,97.082,24.9468]
[1644696594124,41.60229918,97.164,97.084,2.62390296]
[1644696594325,41.57445165,97.164,97.085,5.148]
[1644696594525,5.17584753,97.176,97.1,15.4458]
[1644696594730,0.02784753,97.172,97.101,5.147]
[1644696594925,0.02784753,97.179,97.102,101.6]
[1644696595126,0.02784753,97.181,97.102,101.6]
[1644696595328,0.02784753,97.183,97.103,5.147]
[1644696595526,0.02784753,97.183,97.104,36.13768985]
[1644696595727,5.08397651,97.184,97.12,15.442]
[1644696595926,5.08397651,97.184,97.121,46.08232322]
[1644696596128,5.08397651,97.187,97.121,46.08232322]
[1644696596326,10.22997651,97.187,97.121,46.08232322]
[1644696596528,5.08397651,97.186,97.121,46.08232322]
[1644696597832,0.25,97.185,97.121,46.08232322]
[1644696598028,0.25,97.185,97.121,51.22832322]
[1644696599429,5.08503192,97.184,97.121,51.22832322]
[1644696599627,5.146,97.184,97.121,46.08232322]
[1644696600028,5.08472921,97.183,97.121,46.08232322]
[1644696600229,5.146,97.184,97.121,46.08232322]
[1644696600629,5.08462966,97.183,97.121,46.08232322]
[1644696602831,5.146,97.184,97.121,46.08232322]
[1644696603035,0.25,97.185,97.122,101.6]
[1644696604333,2.84988224,97.194,97.122,101.6]
[1644696604733,7.93555167,97.199,97.13,15.4414]
[1644696604936,5.08566943,97.193,97.13,15.4414]
[1644696605134,5.08566943,97.198,97.13,15.4414]
[1644696605538,45.7049692,97.197,97.13,15.4414]
[1644696605741,45.9549692,97.197,97.13,15.4414]
[1644696606339,0.25,97.197,97.13,15.4414]
[1644696606537,0.25,97.197,97.14,15.4392]
[1644696606736,0.25,97.197,97.141,101.6]
[1644696607137,0.25,97.197,97.142,5.144]
[1644696607335,0.25,97.197,97.142,39.63425459]
[1644696608139,3.894,97.205,97.142,39.63425459]
[1644696608438,5.079078,97.204,97.142,39.63425459]
[1644696608837,5.079078,97.205,97.142,39.63425459]
[1644696609639,5.079078,97.205,97.15,15.4381]
[1644696609838,2.84988224,97.206,97.15,15.4381]
[1644696610239,0.25,97.205,97.15,15.4381]
[1644696610647,0.02784753,97.219,97.152,66.0]
[1644696610840,0.02784753,97.223,97.17,15.4339]
[1644696611043,0.02784753,97.23,97.17,15.4339]
[1644696611242,0.02784753,97.245,97.17,15.4339]
[1644696611442,0.02784753,97.253,97.171,2.62390296]
[1644696611642,42.97393965,97.263,97.172,101.6]
[1644696611841,0.02784753,97.253,97.172,101.6]
[1644696612044,0.02784753,97.262,97.19,15.4301]
[1644696612245,0.02784753,97.265,97.19,25.8401]
[1644696612447,0.02784753,97.267,97.191,23.7555]
[1644696612642,5.16984753,97.277,97.191,23.7555]
[1644696612843,0.02784753,97.281,97.191,23.7555]
[1644696613044,5.16984753,97.276,97.192,39.63425459]
[1644696613246,5.16984753,97.28,97.192,39.63425459]
[1644696613444,0.02784753,97.275,97.211,41.00324522]
[1644696613644,5.141,97.274,97.211,41.00324522]
[1644696613846,5.141,97.28,97.211,41.00324522]
[1644696614048,5.141,97.278,97.191,28.8965]
[1644696614246,37.87818117,97.281,97.171,5.141]
[1644696614247,5.141,97.279,97.171,5.141]
[1644696614450,0.02784753,97.277,97.161,5.142]
[1644696614648,31.43345049,97.278,97.17,15.4333]
[1644696614847,0.02784753,97.276,97.171,27.8099]
[1644696615047,0.02784753,97.277,97.172,44.85449097]
[1644696615249,0.02784753,97.275,97.173,5.142]
[1644696615448,0.02784753,97.277,97.173,7.76590296]
[1644696615750,0.02784753,97.276,97.174,2.62390296]
[1644696615949,5.16984753,97.277,97.175,5.142]
[1644696616148,5.16984753,97.275,97.175,5.142]
[1644696616347,5.16984753,97.277,97.176,2.62390296]
[1644696616548,0.02784753,97.274,97.177,5.142]
[1644696616748,5.142,97.273,97.19,15.43]
[1644696616951,0.02784753,97.273,97.191,35.78300884]
[1644696617150,5.142,97.272,97.192,29.2677]
[1644696617549,0.02784753,97.274,97.192,24.1257]
[1644696617751,0.02784753,97.273,97.193,2.62390296]
[1644696618049,5.142,97.272,97.193,2.62390296]
[1644696618252,5.16984753,97.276,97.193,2.62390296]
[1644696618448,0.02784753,97.274,97.194,5.142]
[1644696618648,0.02784753,97.276,97.194,5.142]
[1644696618849,0.02784753,97.277,97.2,15.4295]
[1644696619148,0.02784753,97.276,97.201,5.141]
[1644696619350,23.6387,97.278,97.202,101.6]
[1644696619548,23.6387,97.278,97.194,5.141]